[Event "Swedish Chess Championship 2019: Sverigemastarklassen"]
[Site "Stiga Sports Arena, Arenatorget 1, Eskilstuna, Sweden"]
[Date "2019.07.07"]
[Round "2.3"]
[White "Sagit, Rauan"]
[Black "Kucuksari, Kaan"]
[Result "1-0"]
[TimeControl "90 minutes for 40 moves + 30 minutes for the rest of the game + 30 seconds per move from move one"]
[WhiteTitle "IM"]
[BlackTitle "FM"]
[WhiteFideId "1708376"]
[BlackFideId "6380166"]
[WhiteElo "2429"]
[BlackElo "2310"]

1. Nf3 {[%clk 01:30:46]} {[%emt 00:00:13]} Nf6 {[%clk 01:30:54]} {[%emt
00:00:07]} 2. g3 {[%clk 01:30:56]} {[%emt 00:00:19]} b6 {[%clk 01:31:15]}
{[%emt 00:00:10]} 3. Bg2 {[%clk 01:31:09]} {[%emt 00:00:16]} Bb7 {[%clk
01:31:45]} {[%emt 00:00:03]} 4. c4 {[%clk 01:30:44]} {[%emt 00:00:53]} e6
{[%clk 01:32:09]} {[%emt 00:00:06]} 5. O-O {[%clk 01:30:45]} {[%emt 00:00:29]}
Be7 {[%clk 01:32:38]} {[%emt 00:00:02]} 6. b3 {[%clk 01:30:54]} {[%emt
00:00:20]} O-O {[%clk 01:33:03]} {[%emt 00:00:05]} 7. Bb2 {[%clk 01:31:11]}
{[%emt 00:00:12]} c6 {[%clk 01:32:18]} {[%emt 00:01:17]} 8. d4 {[%clk
01:30:25]} {[%emt 00:01:14]} d5 {[%clk 01:30:19]} {[%emt 00:02:30]} 9. Nc3
{[%clk 01:30:08]} {[%emt 00:00:46]} Nbd7 {[%clk 01:30:37]} {[%emt 00:00:13]} 10.
Qd3 {[%clk 01:29:07]} {[%emt 00:01:29]} Qc7 {[%clk 01:26:46]} {[%emt 00:04:23]}
11. Rac1 {[%clk 01:26:24]} {[%emt 00:03:11]} dxc4 {[%clk 01:22:25]} {[%emt
00:04:54]} 12. bxc4 {[%clk 01:25:23]} {[%emt 00:01:30]} Rad8 {[%clk 01:22:03]}
{[%emt 00:00:46]} 13. Rfd1 {[%clk 01:19:53]} {[%emt 00:06:06]} Ba6 {[%clk
01:15:34]} {[%emt 00:06:59]} 14. Ne4 {[%clk 01:15:27]} {[%emt 00:04:56]} c5
{[%clk 01:14:23]} {[%emt 00:01:42]} 15. e3 {[%clk 01:11:55]} {[%emt 00:04:01]}
Nxe4 {[%clk 01:02:15]} {[%emt 00:12:39]} 16. Qxe4 {[%clk 01:12:12]} {[%emt
00:00:13]} Nf6 {[%clk 01:02:43]} {[%emt 00:00:02]} 17. Qc2 {[%clk 01:10:59]}
{[%emt 00:01:42]} Bb7 {[%clk 01:02:19]} {[%emt 00:00:54]} 18. Ne5 {[%clk
01:06:20]} {[%emt 00:05:09]} Bxg2 {[%clk 00:57:17]} {[%emt 00:05:33]} 19. Kxg2
{[%clk 01:06:36]} {[%emt 00:00:13]} Qb7+ {[%clk 00:57:46]} {[%emt 00:00:02]} 20.
f3 {[%clk 01:05:20]} {[%emt 00:01:45]} Nd7 {[%clk 00:50:11]} {[%emt 00:08:04]}
21. Nd3 {[%clk 00:57:10]} {[%emt 00:08:41]} cxd4 {[%clk 00:46:22]} {[%emt
00:04:19]} 22. Bxd4 {[%clk 00:54:36]} {[%emt 00:03:03]} Rc8 {[%clk 00:40:09]}
{[%emt 00:06:44]} 23. Qb2 {[%clk 00:50:08]} {[%emt 00:04:58]} f6 {[%clk
00:39:17]} {[%emt 00:01:23]} 24. e4 {[%clk 00:47:59]} {[%emt 00:02:38]} Rc7
{[%clk 00:30:09]} {[%emt 00:09:39]} 25. Qb3 {[%clk 00:44:28]} {[%emt 00:03:59]}
Kf7 {[%clk 00:24:36]} {[%emt 00:06:04]} 26. Rc2 {[%clk 00:37:46]} {[%emt
00:07:11]} Rfc8 {[%clk 00:20:37]} {[%emt 00:04:30]} 27. a4 {[%clk 00:34:26]}
{[%emt 00:03:49]} Qa6 {[%clk 00:17:58]} {[%emt 00:03:09]} 28. Nb2 {[%clk
00:32:32]} {[%emt 00:02:24]} Bc5 {[%clk 00:15:52]} {[%emt 00:02:33]} 29. Bc3
{[%clk 00:31:22]} {[%emt 00:01:44]} Qb7 {[%clk 00:13:41]} {[%emt 00:02:41]} 30.
Rcd2 {[%clk 00:30:52]} {[%emt 00:00:59]} Be7 {[%clk 00:13:23]} {[%emt
00:00:48]} 31. Qa2 {[%clk 00:25:28]} {[%emt 00:05:55]} a5 {[%clk 00:13:06]}
{[%emt 00:00:48]} 32. Qb3 {[%clk 00:24:01]} {[%emt 00:01:54]} Nc5 {[%clk
00:07:51]} {[%emt 00:05:48]} 33. Qc2 {[%clk 00:23:48]} {[%emt 00:00:41]} Qc6
{[%clk 00:07:05]} {[%emt 00:01:16]} 34. Bd4 {[%clk 00:20:52]} {[%emt 00:03:27]}
Nd7 {[%clk 00:05:27]} {[%emt 00:02:08]} 35. Rd3 {[%clk 00:18:59]} {[%emt
00:02:22]} Bb4 {[%clk 00:04:51]} {[%emt 00:01:07]} 36. Qe2 {[%clk 00:18:06]}
{[%emt 00:01:21]} Be7 {[%clk 00:01:01]} {[%emt 00:04:22]} 37. Qd2 {[%clk
00:16:40]} {[%emt 00:01:55]} Nf8 {[%clk 00:00:39]} {[%emt 00:00:52]} 38. Be3
{[%clk 00:14:49]} {[%emt 00:02:21]} Rb7 {[%clk 00:00:57]} {[%emt 00:00:13]} 39.
h4 {[%clk 00:13:01]} {[%emt 00:02:16]} Rcc7 {[%clk 00:00:36]} {[%emt 00:00:52]}
40. h5 {[%clk 00:06:57]} {[%emt 00:06:35]} Rd7 {[%clk 00:00:57]} {[%emt
00:00:09]} 41. Qe2 {[%clk 00:02:31]} {[%emt 00:04:55]} Rxd3 {[%clk 00:29:12]}
{[%emt 00:04:11]} 42. Rxd3 {[%clk 00:29:26]} {[%emt 00:01:40]} Nd7 {[%clk
00:27:23]} {[%emt 00:02:21]} 43. Bd4 {[%clk 00:27:58]} {[%emt 00:01:57]} Bc5
{[%clk 00:23:16]} {[%emt 00:04:37]} 44. Bc3 {[%clk 00:24:15]} {[%emt 00:04:14]}
Bd6 {[%clk 00:22:14]} {[%emt 00:01:30]} 45. Qd2 {[%clk 00:21:31]} {[%emt
00:03:15]} Ke7 {[%clk 00:20:29]} {[%emt 00:02:13]} 46. h6 {[%clk 00:16:17]}
{[%emt 00:05:46]} g6 {[%clk 00:19:47]} {[%emt 00:01:12]} 47. Bd4 {[%clk
00:15:55]} {[%emt 00:00:51]} Kf7 {[%clk 00:16:06]} {[%emt 00:08:34]} 48. Bxf6
{[%clk 00:12:54]} {[%emt 00:02:21]} Bxg3 {[%clk 00:16:35]} {[%emt 00:00:02]} 49.
Bc3 {[%clk 00:11:44]} {[%emt 00:01:40]} Bb8 {[%clk 00:16:09]} {[%emt 00:00:57]}
50. Qg5 {[%clk 00:09:52]} {[%emt 00:02:20]} Bd6 {[%clk 00:14:39]} {[%emt
00:02:01]} 51. Qe3 {[%clk 00:08:29]} {[%emt 00:01:52]} Qc5 {[%clk 00:13:24]}
{[%emt 00:01:45]} 52. Qd2 {[%clk 00:07:12]} {[%emt 00:01:47]} Ke7 {[%clk
00:13:14]} {[%emt 00:00:41]} 53. Bg7 {[%clk 00:05:39]} {[%emt 00:02:02]} Rb8
{[%clk 00:08:18]} {[%emt 00:05:27]} 54. e5 {[%clk 00:04:36]} {[%emt 00:01:33]}
Nxe5 {[%clk 00:08:09]} {[%emt 00:00:39]} 55. Rxd6 {[%clk 00:03:10]} {[%emt
00:01:55]} Qxd6 {[%clk 00:08:27]} {[%emt 00:00:12]} 56. Qg5+ {[%clk 00:03:19]}
{[%emt 00:00:21]} Ke8 {[%clk 00:08:48]} {[%emt 00:00:10]} 57. Bxe5 {[%clk
00:03:35]} {[%emt 00:00:13]} Qd8 {[%clk 00:09:15]} {[%emt 00:00:02]} 58. Qg4
{[%clk 00:01:39]} {[%emt 00:02:27]} Rb7 {[%clk 00:09:19]} {[%emt 00:00:26]} 59.
Qxe6+ {[%clk 00:01:58]} {[%emt 00:00:12]} Qe7 {[%clk 00:09:38]} {[%emt
00:00:11]} 60. Qg8+ {[%clk 00:01:42]} {[%emt 00:00:45]} Kd7 {[%clk 00:08:46]}
{[%emt 00:01:23]} 61. Qd5+ {[%clk 00:01:59]} {[%emt 00:00:13]} Ke8 {[%clk
00:09:16]} 62. Qg8+ {[%clk 00:01:39]} {[%emt 00:00:50]} Kd7 {[%clk 00:09:35]}
{[%emt 00:00:11]} 63. Nd3 {[%clk 00:01:35]} {[%emt 00:00:33]} Qg5+ {[%clk
00:09:31]} {[%emt 00:00:34]} 64. Bg3 {[%clk 00:01:52]} {[%emt 00:00:14]} Qd2+
{[%clk 00:09:00]} {[%emt 00:01:00]} 65. Nf2 {[%clk 00:02:16]} {[%emt 00:00:06]}
1-0

[Event "Swedish Chess Championship 2019: Sverigemastarklassen"]
[Site "Stiga Sports Arena, Arenatorget 1, Eskilstuna, Sweden"]
[Date "2019.07.08"]
[Round "3.1"]
[White "Johansson, Linus"]
[Black "Lokander, Martin"]
[Result "0-1"]
[TimeControl "90 minutes for 40 moves + 30 minutes for the rest of the game + 30 seconds per move from move one"]
[WhiteTitle "IM"]
[BlackTitle "IM"]
[WhiteFideId "1711113"]
[BlackFideId "1709569"]
[WhiteElo "2480"]
[BlackElo "2397"]

1. Nf3 {[%clk 01:30:44]} {[%emt 00:00:16]} Nf6 {[%clk 01:30:14]} {[%emt
00:00:47]} 2. g3 {[%clk 01:31:08]} {[%emt 00:00:06]} g6 {[%clk 01:30:08]}
{[%emt 00:00:36]} 3. Bg2 {[%clk 01:31:33]} {[%emt 00:00:04]} Bg7 {[%clk
01:30:36]} {[%emt 00:00:02]} 4. O-O {[%clk 01:31:56]} {[%emt 00:00:07]} O-O
{[%clk 01:30:47]} {[%emt 00:00:19]} 5. d3 {[%clk 01:32:22]} {[%emt 00:00:04]}
d5 {[%clk 01:29:55]} {[%emt 00:01:22]} 6. b4 {[%clk 01:32:47]} {[%emt
00:00:06]} Ne8 {[%clk 01:24:30]} {[%emt 00:05:55]} 7. c3 {[%clk 01:33:04]}
{[%emt 00:00:13]} e5 {[%clk 01:24:43]} {[%emt 00:00:16]} 8. Bb2 {[%clk
01:33:13]} {[%emt 00:00:21]} Nd6 {[%clk 01:18:17]} {[%emt 00:06:56]} 9. Nbd2
{[%clk 01:32:40]} {[%emt 00:01:03]} Be6 {[%clk 01:18:03]} {[%emt 00:00:44]} 10.
Qc2 {[%clk 01:30:36]} {[%emt 00:02:34]} a5 {[%clk 01:10:57]} {[%emt 00:07:36]}
11. Nb3 {[%clk 01:26:58]} {[%emt 00:04:08]} Nc6 {[%clk 01:06:56]} {[%emt
00:04:32]} 12. a3 {[%clk 01:26:34]} {[%emt 00:00:53]} Qe7 {[%clk 00:53:59]}
{[%emt 00:13:27]} 13. Nc5 {[%clk 01:12:01]} {[%emt 00:15:03]} e4 {[%clk
00:49:49]} {[%emt 00:04:40]} 14. dxe4 {[%clk 01:12:16]} {[%emt 00:00:15]} dxe4
{[%clk 00:49:10]} {[%emt 00:01:09]} 15. Nd4 {[%clk 01:12:38]} {[%emt 00:00:08]}
Nxd4 {[%clk 00:48:46]} {[%emt 00:00:55]} 16. cxd4 {[%clk 01:13:01]} {[%emt
00:00:06]} Bd5 {[%clk 00:48:50]} {[%emt 00:00:26]} 17. bxa5 {[%clk 01:10:51]}
{[%emt 00:02:40]} Rxa5 {[%clk 00:47:43]} {[%emt 00:01:38]} 18. Bc3 {[%clk
01:10:12]} {[%emt 00:01:07]} Raa8 {[%clk 00:45:49]} {[%emt 00:02:24]} 19. Bb4
{[%clk 01:10:28]} {[%emt 00:00:14]} Bxd4 {[%clk 00:40:47]} {[%emt 00:05:32]} 20.
Rad1 {[%clk 01:10:03]} {[%emt 00:00:54]} Bxc5 {[%clk 00:40:14]} {[%emt
00:01:04]} 21. Qxc5 {[%clk 01:09:10]} {[%emt 00:01:23]} Bc6 {[%clk 00:40:28]}
{[%emt 00:00:16]} 22. Bh3 {[%clk 01:00:29]} {[%emt 00:09:10]} Rad8 {[%clk
00:34:39]} {[%emt 00:06:21]} 23. Qd4 {[%clk 00:45:00]} {[%emt 00:15:58]} Bd7
{[%clk 00:32:11]} {[%emt 00:02:58]} 24. Bg2 {[%clk 00:42:51]} {[%emt 00:02:38]}
Bc6 {[%clk 00:32:05]} {[%emt 00:00:37]} 25. Rc1 {[%clk 00:34:46]} {[%emt
00:08:35]} Qe6 {[%clk 00:29:59]} {[%emt 00:02:36]} 26. Rfd1 {[%clk 00:34:23]}
{[%emt 00:00:52]} f6 {[%clk 00:27:44]} {[%emt 00:02:45]} 27. Qc5 {[%clk
00:29:07]} {[%emt 00:05:47]} Rd7 {[%clk 00:23:28]} {[%emt 00:04:46]} 28. Qc2
{[%clk 00:26:12]} {[%emt 00:03:24]} Rfd8 {[%clk 00:22:43]} {[%emt 00:01:16]} 29.
h4 {[%clk 00:21:58]} {[%emt 00:04:44]} Nf7 {[%clk 00:17:22]} {[%emt 00:05:51]}
30. Rxd7 {[%clk 00:20:30]} {[%emt 00:01:58]} Rxd7 {[%clk 00:17:47]} {[%emt
00:00:05]} 31. Qc5 {[%clk 00:20:16]} {[%emt 00:00:43]} Nd6 {[%clk 00:17:48]}
{[%emt 00:00:30]} 32. e3 {[%clk 00:19:30]} {[%emt 00:01:15]} Qd5 {[%clk
00:16:22]} {[%emt 00:01:57]} 33. Qxd5+ {[%clk 00:15:45]} {[%emt 00:04:15]} Bxd5
{[%clk 00:16:31]} {[%emt 00:00:21]} 34. Rd1 {[%clk 00:16:10]} {[%emt 00:00:04]}
Bc6 {[%clk 00:15:39]} {[%emt 00:01:23]} 35. Bh3 {[%clk 00:16:32]} {[%emt
00:00:08]} f5 {[%clk 00:12:27]} {[%emt 00:03:43]} 36. g4 {[%clk 00:16:51]}
{[%emt 00:00:09]} Nf7 {[%clk 00:11:44]} {[%emt 00:01:14]} 37. Rxd7 {[%clk
00:16:10]} {[%emt 00:01:11]} Bxd7 {[%clk 00:12:10]} {[%emt 00:00:04]} 38. gxf5
{[%clk 00:16:25]} {[%emt 00:00:14]} Ne5 {[%clk 00:11:55]} {[%emt 00:00:46]} 39.
Kh2 {[%clk 00:15:41]} {[%emt 00:01:14]} Bxf5 {[%clk 00:10:48]} {[%emt
00:01:36]} 40. Bf1 {[%clk 00:15:48]} {[%emt 00:00:22]} Kf7 {[%clk 00:06:32]}
{[%emt 00:04:48]} 41. Be2 {[%clk 00:03:00]} {[%emt 00:13:18]} Bg4 {[%clk
00:03:51]} {[%emt 00:03:11]} 42. Bc3 {[%clk 00:24:44]} {[%emt 00:08:46]} Bxe2
{[%clk 00:34:09]} {[%emt 00:00:12]} 43. Bxe5 {[%clk 00:25:09]} {[%emt
00:00:05]} c6 {[%clk 00:34:36]} {[%emt 00:00:03]} 44. Kg3 {[%clk 00:24:45]}
{[%emt 00:00:53]} Ke6 {[%clk 00:35:03]} {[%emt 00:00:03]} 45. Kf4 {[%clk
00:25:06]} {[%emt 00:00:09]} Kd5 {[%clk 00:35:15]} {[%emt 00:00:19]} 46. Bf6
{[%clk 00:25:04]} {[%emt 00:00:31]} b5 {[%clk 00:35:30]} {[%emt 00:00:16]} 47.
Kg5 {[%clk 00:24:32]} {[%emt 00:01:02]} h5 {[%clk 00:30:31]} {[%emt 00:05:28]}
48. Kxg6 {[%clk 00:23:13]} {[%emt 00:01:49]} c5 {[%clk 00:30:58]} {[%emt
00:00:04]} 49. Kf7 {[%clk 00:22:03]} {[%emt 00:01:40]} b4 {[%clk 00:29:20]}
{[%emt 00:02:08]} 50. a4 {[%clk 00:21:15]} {[%emt 00:01:17]} c4 {[%clk
00:29:38]} {[%emt 00:00:12]} 51. a5 {[%clk 00:21:28]} {[%emt 00:00:18]} c3
{[%clk 00:29:56]} {[%emt 00:00:12]} 52. Bd4 {[%clk 00:20:47]} {[%emt 00:01:09]}
Bb5 {[%clk 00:29:53]} {[%emt 00:00:34]} 53. Kg6 {[%clk 00:19:59]} {[%emt
00:01:18]} Kc4 {[%clk 00:30:18]} 0-1

[Event "Swedish Chess Championship 2019: Sverigemastarklassen"]
[Site "Stiga Sports Arena, Arenatorget 1, Eskilstuna, Sweden"]
[Date "2019.07.09"]
[Round "4.2"]
[White "Johansson, Linus"]
[Black "Blomqvist, Erik"]
[Result "1/2-1/2"]
[TimeControl "90 minutes for 40 moves + 30 minutes for the rest of the game + 30 seconds per move from move one"]
[WhiteTitle "IM"]
[BlackTitle "GM"]
[WhiteFideId "1711113"]
[BlackFideId "1709437"]
[WhiteElo "2480"]
[BlackElo "2492"]

1. d4 {[%clk 01:30:56]} {[%emt 00:00:04]} Nf6 {[%clk 01:30:45]} {[%emt
00:00:16]} 2. c4 {[%clk 01:31:20]} {[%emt 00:00:05]} e6 {[%clk 01:31:08]}
{[%emt 00:00:06]} 3. Nf3 {[%clk 01:31:36]} {[%emt 00:00:14]} Bb4+ {[%clk
01:30:40]} {[%emt 00:00:59]} 4. Nbd2 {[%clk 01:31:47]} {[%emt 00:00:19]} O-O
{[%clk 01:30:14]} {[%emt 00:00:56]} 5. a3 {[%clk 01:32:09]} {[%emt 00:00:09]}
Be7 {[%clk 01:30:38]} {[%emt 00:00:06]} 6. g3 {[%clk 01:31:17]} {[%emt
00:01:21]} b6 {[%clk 01:30:10]} {[%emt 00:00:58]} 7. Bg2 {[%clk 01:31:14]}
{[%emt 00:00:33]} Bb7 {[%clk 01:30:33]} {[%emt 00:00:07]} 8. O-O {[%clk
01:30:45]} {[%emt 00:00:58]} c5 {[%clk 01:30:26]} {[%emt 00:00:37]} 9. e3
{[%clk 01:28:45]} {[%emt 00:02:30]} cxd4 {[%clk 01:27:52]} {[%emt 00:03:05]} 10.
exd4 {[%clk 01:29:08]} {[%emt 00:00:07]} d5 {[%clk 01:28:07]} {[%emt 00:00:14]}
11. b3 {[%clk 01:26:28]} {[%emt 00:03:10]} Nc6 {[%clk 01:27:58]} {[%emt
00:00:38]} 12. Bb2 {[%clk 01:26:30]} {[%emt 00:00:29]} Rc8 {[%clk 01:27:01]}
{[%emt 00:01:27]} 13. cxd5 {[%clk 01:23:02]} {[%emt 00:03:59]} Nxd5 {[%clk
01:24:46]} {[%emt 00:02:45]} 14. Qe2 {[%clk 01:18:53]} {[%emt 00:04:38]} Rc7
{[%clk 01:19:29]} {[%emt 00:05:46]} 15. Rac1 {[%clk 01:13:00]} {[%emt
00:06:23]} Qa8 {[%clk 01:13:02]} {[%emt 00:06:57]} 16. b4 {[%clk 01:06:18]}
{[%emt 00:07:13]} Rfc8 {[%clk 01:09:32]} {[%emt 00:04:00]} 17. Ne4 {[%clk
00:56:59]} {[%emt 00:09:49]} h6 {[%clk 01:03:56]} {[%emt 00:06:06]} 18. Rfd1
{[%clk 00:51:14]} {[%emt 00:06:15]} Bf8 {[%clk 00:58:10]} {[%emt 00:06:15]} 19.
h4 {[%clk 00:47:15]} {[%emt 00:04:29]} Qb8 {[%clk 00:54:04]} {[%emt 00:04:37]}
20. Kh2 {[%clk 00:40:43]} {[%emt 00:07:02]} Nce7 {[%clk 00:47:20]} {[%emt
00:07:14]} 21. Rxc7 {[%clk 00:38:16]} {[%emt 00:02:57]} Qxc7 {[%clk 00:46:10]}
{[%emt 00:01:40]} 22. Rc1 {[%clk 00:38:03]} {[%emt 00:00:44]} Qd8 {[%clk
00:45:22]} {[%emt 00:01:17]} 23. Rxc8 {[%clk 00:38:11]} {[%emt 00:00:22]} Bxc8
{[%clk 00:44:40]} {[%emt 00:01:12]} 24. Qc4 {[%clk 00:35:20]} {[%emt 00:03:21]}
Bb7 {[%clk 00:38:57]} {[%emt 00:06:14]} 25. Ne5 {[%clk 00:33:58]} {[%emt
00:01:51]} Nf5 {[%clk 00:38:09]} {[%emt 00:01:17]} 26. b5 {[%clk 00:29:26]}
{[%emt 00:05:02]} Qa8 {[%clk 00:28:55]} {[%emt 00:09:44]} 27. Nc3 {[%clk
00:21:43]} {[%emt 00:08:14]} Nd6 {[%clk 00:19:56]} {[%emt 00:09:29]} 28. Qb3
{[%clk 00:15:23]} {[%emt 00:06:49]} Nxc3 {[%clk 00:18:50]} {[%emt 00:01:36]} 29.
Bxb7 {[%clk 00:15:46]} {[%emt 00:00:07]} Qxb7 {[%clk 00:19:15]} {[%emt
00:00:05]} 30. Bxc3 {[%clk 00:16:09]} {[%emt 00:00:07]} Qe4 {[%clk 00:16:31]}
{[%emt 00:03:14]} 31. a4 {[%clk 00:11:57]} {[%emt 00:04:43]} Qe2 {[%clk
00:13:20]} {[%emt 00:03:40]} 32. Qb2 {[%clk 00:08:19]} {[%emt 00:04:08]} Qd1
{[%clk 00:09:23]} {[%emt 00:04:28]} 33. Qa1 {[%clk 00:08:35]} {[%emt 00:00:14]}
Qc2 {[%clk 00:09:31]} {[%emt 00:00:22]} 34. Kg1 {[%clk 00:07:01]} {[%emt
00:02:03]} Ne4 {[%clk 00:08:34]} {[%emt 00:01:27]} 35. Be1 {[%clk 00:07:25]}
{[%emt 00:00:06]} Bb4 {[%clk 00:07:52]} {[%emt 00:01:13]} 36. Ng4 {[%clk
00:04:30]} {[%emt 00:03:30]} Bxe1 {[%clk 00:02:41]} {[%emt 00:05:36]} 37. Qxe1
{[%clk 00:04:53]} {[%emt 00:00:07]} Nc3 {[%clk 00:01:27]} {[%emt 00:01:44]} 38.
Ne5 {[%clk 00:02:49]} {[%emt 00:02:34]} Nxa4 {[%clk 00:00:39]} {[%emt
00:01:18]} 39. Qb4 {[%clk 00:02:33]} {[%emt 00:00:45]} f6 {[%clk 00:00:34]}
{[%emt 00:00:37]} 40. Nd7 {[%clk 00:01:50]} {[%emt 00:01:13]} Nc3 {[%clk
00:00:32]} {[%emt 00:00:31]} 41. Qf8+ {[%clk 00:27:13]} {[%emt 00:05:06]} Kh7
{[%clk 00:30:57]} {[%emt 00:00:06]} 42. Qe8 {[%clk 00:22:15]} {[%emt 00:05:28]}
Ne4 {[%clk 00:26:28]} {[%emt 00:04:59]} 43. Nf8+ {[%clk 00:22:26]} {[%emt
00:00:19]} Kg8 {[%clk 00:26:24]} {[%emt 00:00:33]} 44. Nxe6+ {[%clk 00:22:35]}
{[%emt 00:00:21]} Kh7 {[%clk 00:26:49]} {[%emt 00:00:06]} 45. Nf8+ {[%clk
00:22:30]} {[%emt 00:00:35]} 1/2-1/2

[Event "Swedish Chess Championship 2019: Sverigemastarklassen"]
[Site "Stiga Sports Arena, Arenatorget 1, Eskilstuna, Sweden"]
[Date "2019.07.11"]
[Round "6.2"]
[White "Hillarp Persson, Tiger"]
[Black "Sagit, Rauan"]
[Result "1-0"]
[TimeControl "90 minutes for 40 moves + 30 minutes for the rest of the game + 30 seconds per move from move one"]
[WhiteTitle "GM"]
[BlackTitle "IM"]
[WhiteFideId "1700812"]
[BlackFideId "1708376"]
[WhiteElo "2562"]
[BlackElo "2429"]

1. c4 {[%clk 01:29:03]} {[%emt 00:06:39]} e6 {[%clk 01:30:35]} {[%emt
00:01:34]} 2. Nf3 {[%clk 01:26:47]} {[%emt 00:01:26]} d5 {[%clk 01:29:56]} 3.
g3 {[%clk 01:26:47]} Nf6 {[%clk 01:30:00]} 4. Bg2 {[%clk 01:27:01]} Be7 {[%clk
01:30:05]} 5. O-O {[%clk 01:26:13]} {[%emt 00:00:04]} O-O {[%clk 01:30:18]} 6.
Qc2 {[%clk 01:24:31]} {[%emt 00:01:56]} d4 {[%clk 01:26:14]} {[%emt 00:04:33]}
7. e3 {[%clk 01:15:34]} {[%emt 00:09:27]} c5 {[%clk 01:25:32]} {[%emt
00:01:12]} 8. exd4 {[%clk 01:15:56]} {[%emt 00:00:09]} cxd4 {[%clk 01:25:52]}
{[%emt 00:00:09]} 9. d3 {[%clk 01:16:15]} {[%emt 00:00:11]} Nc6 {[%clk
01:25:48]} {[%emt 00:00:34]} 10. a3 {[%clk 01:16:38]} {[%emt 00:00:08]} a5
{[%clk 01:25:45]} {[%emt 00:00:33]} 11. Re1 {[%clk 01:16:49]} {[%emt 00:00:19]}
Nd7 {[%clk 01:19:16]} {[%emt 00:06:58]} 12. Nbd2 {[%clk 01:15:25]} {[%emt
00:01:54]} h6 {[%clk 01:16:34]} {[%emt 00:03:12]} 13. Rb1 {[%clk 01:15:40]}
{[%emt 00:00:16]} Re8 {[%clk 01:15:30]} {[%emt 00:01:33]} 14. h4 {[%clk
00:49:58]} {[%emt 00:26:13]} e5 {[%clk 01:12:18]} {[%emt 00:03:42]} 15. Ne4
{[%clk 00:43:40]} {[%emt 00:06:48]} Nc5 {[%clk 01:07:49]} {[%emt 00:04:58]} 16.
Bd2 {[%clk 00:26:02]} {[%emt 00:18:08]} Nxe4 {[%clk 01:02:41]} {[%emt
00:05:38]} 17. Rxe4 {[%clk 00:26:24]} {[%emt 00:00:08]} Bf5 {[%clk 01:02:37]}
{[%emt 00:00:33]} 18. Ree1 {[%clk 00:26:09]} {[%emt 00:00:46]} Bf6 {[%clk
00:59:31]} {[%emt 00:03:37]} 19. Nh2 {[%clk 00:24:32]} {[%emt 00:02:06]} Qd7
{[%clk 00:57:25]} {[%emt 00:02:36]} 20. b4 {[%clk 00:23:45]} {[%emt 00:01:17]}
axb4 {[%clk 00:57:17]} {[%emt 00:00:37]} 21. axb4 {[%clk 00:24:09]} {[%emt
00:00:07]} Ra3 {[%clk 00:56:16]} {[%emt 00:01:29]} 22. b5 {[%clk 00:19:02]}
{[%emt 00:05:40]} Bxd3 {[%clk 00:50:43]} {[%emt 00:06:02]} 23. bxc6 {[%clk
00:19:24]} {[%emt 00:00:08]} bxc6 {[%clk 00:50:55]} {[%emt 00:00:18]} 24. Qc1
{[%clk 00:17:40]} {[%emt 00:02:14]} Ra2 {[%clk 00:48:13]} {[%emt 00:03:11]} 25.
Rb3 {[%clk 00:13:40]} {[%emt 00:04:31]} e4 {[%clk 00:47:08]} {[%emt 00:01:34]}
26. Ra3 {[%clk 00:13:18]} {[%emt 00:00:54]} Rc2 {[%clk 00:43:45]} {[%emt
00:03:51]} 27. Qd1 {[%clk 00:13:41]} {[%emt 00:00:08]} Be7 {[%clk 00:40:18]}
{[%emt 00:03:57]} 28. Rxd3 {[%clk 00:11:48]} {[%emt 00:02:24]} exd3 {[%clk
00:40:11]} {[%emt 00:00:36]} 29. Be4 {[%clk 00:12:09]} {[%emt 00:00:10]} Ba3
{[%clk 00:24:40]} {[%emt 00:16:00]} 30. Bxd3 {[%clk 00:11:40]} {[%emt
00:00:59]} Rxe1+ {[%clk 00:24:29]} {[%emt 00:00:41]} 31. Qxe1 {[%clk 00:11:04]}
{[%emt 00:01:06]} Rb2 {[%clk 00:21:58]} {[%emt 00:03:00]} 32. Nf3 {[%clk
00:10:41]} {[%emt 00:00:53]} Qe7 {[%clk 00:17:32]} {[%emt 00:04:57]} 33. Nxd4
{[%clk 00:05:49]} {[%emt 00:05:23]} Qxe1+ {[%clk 00:17:36]} {[%emt 00:00:25]}
34. Bxe1 {[%clk 00:06:10]} {[%emt 00:00:08]} Rb6 {[%clk 00:15:57]} {[%emt
00:02:08]} 35. Be4 {[%clk 00:02:59]} {[%emt 00:03:42]} Bb4 {[%clk 00:15:09]}
{[%emt 00:01:19]} 36. Bxb4 {[%clk 00:02:29]} {[%emt 00:01:00]} Rxb4 {[%clk
00:15:29]} {[%emt 00:00:09]} 37. Bd3 {[%clk 00:02:54]} {[%emt 00:00:05]} c5
{[%clk 00:15:21]} {[%emt 00:00:38]} 38. Nf5 {[%clk 00:02:25]} {[%emt 00:00:59]}
h5 {[%clk 00:12:42]} {[%emt 00:03:09]} 39. Kg2 {[%clk 00:01:56]} {[%emt
00:00:59]} g6 {[%clk 00:12:56]} {[%emt 00:00:16]} 40. Ne3 {[%clk 00:01:16]}
{[%emt 00:01:10]} Rb6 {[%clk 00:11:47]} {[%emt 00:01:39]} 41. Be4 {[%clk
00:01:33]} {[%emt 00:00:13]} Rd6 {[%clk 00:11:15]} {[%emt 00:01:01]} 42. Bd5
{[%clk 00:01:17]} {[%emt 00:00:48]} Kf8 {[%clk 00:09:33]} {[%emt 00:02:12]} 43.
Nd1 {[%clk 00:01:12]} {[%emt 00:00:34]} Ke7 {[%clk 00:09:00]} {[%emt 00:01:03]}
44. Nc3 {[%clk 00:01:33]} {[%emt 00:00:09]} Rd7 {[%clk 00:09:01]} {[%emt
00:00:29]} 45. Ne4 {[%clk 00:01:38]} {[%emt 00:00:25]} Rc7 {[%clk 00:08:52]}
{[%emt 00:00:39]} 46. Kf3 {[%clk 00:01:57]} {[%emt 00:00:10]} f6 {[%clk
00:05:49]} {[%emt 00:03:35]} 47. Kf4 {[%clk 00:02:19]} {[%emt 00:00:07]} Rc8
{[%clk 00:06:00]} {[%emt 00:00:19]} 48. f3 {[%clk 00:01:11]} {[%emt 00:01:38]}
Rc7 {[%clk 00:05:25]} {[%emt 00:01:06]} 49. g4 {[%clk 00:00:47]} {[%emt
00:00:54]} hxg4 {[%clk 00:04:43]} {[%emt 00:01:11]} 50. fxg4 {[%clk 00:01:09]}
{[%emt 00:00:08]} Rc8 {[%clk 00:04:46]} {[%emt 00:00:25]} 51. g5 {[%clk
00:01:06]} {[%emt 00:00:34]} f5 {[%clk 00:02:54]} {[%emt 00:02:23]} 52. Ng3
{[%clk 00:00:42]} {[%emt 00:00:54]} Kf8 {[%clk 00:01:38]} {[%emt 00:01:47]} 53.
h5 {[%clk 00:01:03]} {[%emt 00:00:08]} Kg7 {[%clk 00:02:01]} {[%emt 00:00:07]}
54. hxg6 {[%clk 00:00:55]} {[%emt 00:00:39]} Kxg6 {[%clk 00:02:24]} {[%emt
00:00:06]} 55. Be6 {[%clk 00:01:01]} {[%emt 00:00:24]} 1-0